[Event "Late-Titled-Tuesday-Blitz-May-07-2024"]
[Site "Chess.com"]
[Date "2024.05.07"]
[Round "1"]
[White "LuisFSiles"]
[Black "Byniolus"]
[Result "1/2-1/2"]
[WhiteElo "2479"]
[BlackElo "2815"]
[TimeControl "180+1"]
[EndTime "14:08:05 PDT"]
[Termination "Game drawn - insufficient material"]

1. e4 {[%clk 0:03:00.9]} 1... d6 {[%clk 0:03:00.1]} 2. Nc3 {[%clk 0:03:00.2]}
2... Nf6 {[%clk 0:03:01]} 3. f4 {[%clk 0:03:00.4]} 3... d5 {[%clk 0:03:01]} 4.
e5 {[%clk 0:02:59.7]} 4... d4 {[%clk 0:03:01.5]} 5. exf6 {[%clk 0:02:59.2]} 5...
dxc3 {[%clk 0:03:02.4]} 6. fxg7 {[%clk 0:02:57.4]} 6... cxd2+ {[%clk 0:03:02.6]}
7. Qxd2 {[%clk 0:02:57.8]} 7... Bxg7 {[%clk 0:03:02.6]} 8. Qxd8+ {[%clk
0:02:57.3]} 8... Kxd8 {[%clk 0:03:03.5]} 9. c3 {[%clk 0:02:55.4]} 9... c6 {[%clk
0:02:56.6]} 10. Nf3 {[%clk 0:02:52.7]} 10... Kc7 {[%clk 0:02:54.4]} 11. Be3
{[%clk 0:02:48.1]} 11... Bf5 {[%clk 0:02:47.2]} 12. O-O-O {[%clk 0:02:44.7]}
12... Nd7 {[%clk 0:02:46.6]} 13. h3 {[%clk 0:02:22.8]} 13... Nb6 {[%clk
0:02:17.8]} 14. Bd3 {[%clk 0:02:19]} 14... Bxd3 {[%clk 0:02:15.6]} 15. Rxd3
{[%clk 0:02:19.9]} 15... Rad8 {[%clk 0:02:13.4]} 16. Rhd1 {[%clk 0:02:15.9]}
16... Rxd3 {[%clk 0:02:13.6]} 17. Rxd3 {[%clk 0:02:15.4]} 17... Nd5 {[%clk
0:02:06.1]} 18. g4 {[%clk 0:01:49.6]} 18... h5 {[%clk 0:01:51.9]} 19. g5 {[%clk
0:01:45.5]} 19... e6 {[%clk 0:01:41.5]} 20. a3 {[%clk 0:01:38.4]} 20... a5
{[%clk 0:01:28.4]} 21. c4 {[%clk 0:01:36.4]} 21... Nxe3 {[%clk 0:01:28.3]} 22.
Rxe3 {[%clk 0:01:36.2]} 22... Rd8 {[%clk 0:01:26]} 23. b3 {[%clk 0:01:29.1]}
23... b5 {[%clk 0:01:15]} 24. cxb5 {[%clk 0:01:21.8]} 24... cxb5 {[%clk
0:01:15.9]} 25. Kc2 {[%clk 0:01:22]} 25... Kb6 {[%clk 0:01:13]} 26. Rd3 {[%clk
0:01:22.1]} 26... Rc8+ {[%clk 0:01:04.8]} 27. Kd2 {[%clk 0:01:17.6]} 27... Rc7
{[%clk 0:00:42.4]} 28. h4 {[%clk 0:01:04.9]} 28... a4 {[%clk 0:00:36.1]} 29.
bxa4 {[%clk 0:01:03.7]} 29... bxa4 {[%clk 0:00:37]} 30. Ne5 {[%clk 0:01:01.7]}
30... Bxe5 {[%clk 0:00:22.5]} 31. fxe5 {[%clk 0:01:02.6]} 31... Rc4 {[%clk
0:00:23]} 32. Rf3 {[%clk 0:01:01.5]} 32... Rxh4 {[%clk 0:00:22.2]} 33. Rxf7
{[%clk 0:01:01.6]} 33... Kc5 {[%clk 0:00:20.4]} 34. Ra7 {[%clk 0:00:51.3]} 34...
Rg4 {[%clk 0:00:14.3]} 35. g6 {[%clk 0:00:50.4]} 35... Rxg6 {[%clk 0:00:10.5]}
36. Rxa4 {[%clk 0:00:50.5]} 36... Rh6 {[%clk 0:00:10.4]} 37. Rh4 {[%clk
0:00:46.3]} 37... Kd5 {[%clk 0:00:10.9]} 38. Ke3 {[%clk 0:00:46.2]} 38... Kxe5
{[%clk 0:00:11.3]} 39. a4 {[%clk 0:00:45]} 39... Kf5 {[%clk 0:00:11.7]} 40. a5
{[%clk 0:00:45.5]} 40... Kg5 {[%clk 0:00:11.8]} 41. Ra4 {[%clk 0:00:45.5]} 41...
Rh7 {[%clk 0:00:04.1]} 42. a6 {[%clk 0:00:40.5]} 42... Ra7 {[%clk 0:00:05]} 43.
Kf3 {[%clk 0:00:20.7]} 43... Kf5 {[%clk 0:00:03.4]} 44. Ra5+ {[%clk 0:00:20.3]}
44... e5 {[%clk 0:00:03.5]} 45. Ra1 {[%clk 0:00:17.6]} 45... h4 {[%clk
0:00:03.4]} 46. Ra4 {[%clk 0:00:10.7]} 46... h3 {[%clk 0:00:03.2]} 47. Kg3
{[%clk 0:00:10.7]} 47... e4 {[%clk 0:00:02.9]} 48. Kxh3 {[%clk 0:00:10.7]} 48...
Kf4 {[%clk 0:00:03.8]} 49. Kg2 {[%clk 0:00:10.6]} 49... Ke3 {[%clk 0:00:04.6]}
50. Kf1 {[%clk 0:00:10.1]} 50... Kf3 {[%clk 0:00:04.6]} 51. Ra5 {[%clk
0:00:07.3]} 51... e3 {[%clk 0:00:04.7]} 52. Rf5+ {[%clk 0:00:06.1]} 52... Ke4
{[%clk 0:00:05.2]} 53. Rf6 {[%clk 0:00:04.3]} 53... Kd3 {[%clk 0:00:04.5]} 54.
Rd6+ {[%clk 0:00:03.8]} 54... Kc4 {[%clk 0:00:05]} 55. Ke2 {[%clk 0:00:04.2]}
55... Kb5 {[%clk 0:00:05.5]} 56. Kxe3 {[%clk 0:00:04]} 56... Rxa6 {[%clk
0:00:06.4]} 57. Rxa6 {[%clk 0:00:04.1]} 57... Kxa6 {[%clk 0:00:07.3]} 1/2-1/2

[Event "Late-Titled-Tuesday-Blitz-May-07-2024"]
[Site "Chess.com"]
[Date "2024.05.07"]
[Round "1"]
[White "SergioMoralesG"]
[Black "NMJeevanK"]
[Result "1-0"]
[WhiteElo "2468"]
[BlackElo "2762"]
[TimeControl "180+1"]
[EndTime "14:08:07 PDT"]
[Termination "SergioMoralesG won on time"]

1. d4 {[%clk 0:02:59]} 1... d6 {[%clk 0:03:00]} 2. Nf3 {[%clk 0:02:58.1]} 2...
g6 {[%clk 0:02:59.6]} 3. c4 {[%clk 0:02:58.4]} 3... Bg7 {[%clk 0:03:00.4]} 4. e4
{[%clk 0:02:58.3]} 4... Nc6 {[%clk 0:02:59.9]} 5. d5 {[%clk 0:02:54.8]} 5... Ne5
{[%clk 0:02:58.7]} 6. Nxe5 {[%clk 0:02:53.2]} 6... Bxe5 {[%clk 0:02:59.6]} 7.
Be2 {[%clk 0:02:53.5]} 7... c6 {[%clk 0:02:57.5]} 8. Nc3 {[%clk 0:02:42.7]} 8...
Nf6 {[%clk 0:02:54.6]} 9. Qc2 {[%clk 0:02:37.4]} 9... O-O {[%clk 0:02:50.5]} 10.
O-O {[%clk 0:02:29.3]} 10... cxd5 {[%clk 0:02:48.3]} 11. Nxd5 {[%clk 0:02:19.3]}
11... Nxd5 {[%clk 0:02:40.9]} 12. cxd5 {[%clk 0:02:19.2]} 12... Bd7 {[%clk
0:02:39.8]} 13. Be3 {[%clk 0:02:11.2]} 13... Rc8 {[%clk 0:02:32.2]} 14. Qb3
{[%clk 0:02:11]} 14... b6 {[%clk 0:02:24.1]} 15. Rac1 {[%clk 0:02:09.9]} 15...
f5 {[%clk 0:02:17.1]} 16. exf5 {[%clk 0:02:00.1]} 16... Bxf5 {[%clk 0:02:14.3]}
17. Ba6 {[%clk 0:01:56.1]} 17... Rxc1 {[%clk 0:02:10.9]} 18. Rxc1 {[%clk
0:01:57]} 18... Qe8 {[%clk 0:01:43.5]} 19. Rc7 {[%clk 0:01:45.1]} 19... Qf7
{[%clk 0:01:41.4]} 20. Rxa7 {[%clk 0:01:38.6]} 20... Be4 {[%clk 0:01:41.7]} 21.
Bf1 {[%clk 0:01:30.8]} 21... Bxd5 {[%clk 0:01:39.3]} 22. Qxb6 {[%clk 0:01:29.1]}
22... Bxa2 {[%clk 0:01:27.9]} 23. Qc7 {[%clk 0:01:25.5]} 23... Bb3 {[%clk
0:00:54.6]} 24. Qxe7 {[%clk 0:00:56.1]} 24... Qxe7 {[%clk 0:00:42.9]} 25. Rxe7
{[%clk 0:00:57]} 25... Ra8 {[%clk 0:00:37.4]} 26. f4 {[%clk 0:00:45.1]} 26...
Bg7 {[%clk 0:00:33.9]} 27. Rb7 {[%clk 0:00:38.1]} 27... Be6 {[%clk 0:00:32]} 28.
b4 {[%clk 0:00:35.6]} 28... Ra1 {[%clk 0:00:31.1]} 29. Kf2 {[%clk 0:00:33.9]}
29... Ra2+ {[%clk 0:00:28.1]} 30. Kg3 {[%clk 0:00:27.8]} 30... Ra3 {[%clk
0:00:28.4]} 31. Kf2 {[%clk 0:00:28]} 31... Ra2+ {[%clk 0:00:26.6]} 32. Kg3
{[%clk 0:00:28.3]} 32... Bc3 {[%clk 0:00:26.8]} 33. b5 {[%clk 0:00:24.6]} 33...
Ra3 {[%clk 0:00:26.9]} 34. Re7 {[%clk 0:00:19.8]} 34... Bd5 {[%clk 0:00:15.7]}
35. h3 {[%clk 0:00:16.3]} 35... Bd4 {[%clk 0:00:14.1]} 36. Kf2 {[%clk
0:00:12.8]} 36... Ra2+ {[%clk 0:00:14.5]} 37. Kg3 {[%clk 0:00:12.7]} 37... Ra3
{[%clk 0:00:13.8]} 38. Kf2 {[%clk 0:00:13.1]} 38... Ra2+ {[%clk 0:00:14.3]} 39.
Kg3 {[%clk 0:00:12.8]} 39... Bf6 {[%clk 0:00:15]} 40. Rd7 {[%clk 0:00:11.5]}
40... Ra3 {[%clk 0:00:14.6]} 41. Kf2 {[%clk 0:00:11.3]} 41... Bh4+ {[%clk
0:00:15]} 42. g3 {[%clk 0:00:11.8]} 42... Bxg3+ {[%clk 0:00:15.2]} 43. Kxg3
{[%clk 0:00:11.4]} 43... Rxe3+ {[%clk 0:00:15.9]} 44. Kh4 {[%clk 0:00:11.7]}
44... Rf3 {[%clk 0:00:14.2]} 45. Rxd6 {[%clk 0:00:11.7]} 45... Rxf4+ {[%clk
0:00:13.6]} 46. Kg3 {[%clk 0:00:10.6]} 46... Rf3+ {[%clk 0:00:14.1]} 47. Kg4
{[%clk 0:00:10.5]} 47... Be4 {[%clk 0:00:09.7]} 48. Bc4+ {[%clk 0:00:10.2]}
48... Kf8 {[%clk 0:00:09.4]} 49. b6 {[%clk 0:00:10.1]} 49... Rc3 {[%clk
0:00:06.4]} 50. Bd5 {[%clk 0:00:09.2]} 50... Bf5+ {[%clk 0:00:06]} 51. Kg5
{[%clk 0:00:09.3]} 51... Kg7 {[%clk 0:00:05.9]} 52. b7 {[%clk 0:00:08.6]} 52...
h6+ {[%clk 0:00:06.3]} 53. Kf4 {[%clk 0:00:08.8]} 53... Rc1 {[%clk 0:00:02.9]}
54. Rd8 {[%clk 0:00:08.7]} 54... Rf1+ {[%clk 0:00:03.8]} 55. Kg3 {[%clk
0:00:08.9]} 55... Kf6 {[%clk 0:00:04.4]} 56. b8=Q {[%clk 0:00:08.8]} 56... Rg1+
{[%clk 0:00:05]} 57. Kf2 {[%clk 0:00:09]} 57... Rc1 {[%clk 0:00:04.6]} 58. Qd6+
{[%clk 0:00:09.4]} 58... Kg5 {[%clk 0:00:05.1]} 59. Qg3+ {[%clk 0:00:09.9]}
59... Kf6 {[%clk 0:00:04.8]} 60. Rd6+ {[%clk 0:00:10.5]} 1-0

[Event "Late-Titled-Tuesday-Blitz-May-07-2024"]
[Site "Chess.com"]
[Date "2024.05.07"]
[Round "1"]
[White "Sanan_Sjugirov"]
[Black "Pingah9"]
[Result "1-0"]
[WhiteElo "3028"]
[BlackElo "2548"]
[TimeControl "180+1"]
[EndTime "14:08:13 PDT"]
[Termination "Sanan_Sjugirov won by resignation"]

1. e4 {[%clk 0:03:00.9]} 1... g6 {[%clk 0:02:58.2]} 2. d4 {[%clk 0:03:00.7]}
2... Bg7 {[%clk 0:02:59.1]} 3. Nf3 {[%clk 0:02:59.5]} 3... d6 {[%clk 0:02:59.3]}
4. Bc4 {[%clk 0:02:58]} 4... e6 {[%clk 0:02:59]} 5. Bb3 {[%clk 0:02:56.3]} 5...
Ne7 {[%clk 0:02:58.1]} 6. c3 {[%clk 0:02:56.5]} 6... h6 {[%clk 0:02:57.8]} 7.
Nbd2 {[%clk 0:02:55.2]} 7... O-O {[%clk 0:02:57.8]} 8. Nf1 {[%clk 0:02:55.4]}
8... a6 {[%clk 0:02:57.9]} 9. Ng3 {[%clk 0:02:54.8]} 9... Nd7 {[%clk 0:02:58]}
10. O-O {[%clk 0:02:54.6]} 10... b6 {[%clk 0:02:57.6]} 11. Re1 {[%clk
0:02:45.8]} 11... Bb7 {[%clk 0:02:57.7]} 12. Be3 {[%clk 0:02:40.5]} 12... Kh7
{[%clk 0:02:54.9]} 13. Bc2 {[%clk 0:02:39.1]} 13... Rc8 {[%clk 0:02:49.3]} 14.
h4 {[%clk 0:02:30.3]} 14... c5 {[%clk 0:02:34.8]} 15. h5 {[%clk 0:02:30.3]}
15... Qc7 {[%clk 0:02:33.9]} 16. Rc1 {[%clk 0:02:29]} 16... e5 {[%clk
0:02:25.5]} 17. d5 {[%clk 0:02:25.8]} 17... c4 {[%clk 0:02:15.6]} 18. Qd2 {[%clk
0:02:06.5]} 18... b5 {[%clk 0:02:11.9]} 19. Nh2 {[%clk 0:02:05.8]} 19... g5
{[%clk 0:02:03.3]} 20. Ng4 {[%clk 0:01:59.5]} 20... Nc5 {[%clk 0:01:53.6]} 21.
Nf5 {[%clk 0:01:51.7]} 21... Nxf5 {[%clk 0:01:48.9]} 22. exf5 {[%clk 0:01:52.6]}
22... f6 {[%clk 0:01:49.4]} 23. f3 {[%clk 0:01:43.9]} 23... Rf7 {[%clk
0:01:47.7]} 24. Nf2 {[%clk 0:01:43.2]} 24... Bf8 {[%clk 0:01:43.5]} 25. Ne4
{[%clk 0:01:38.2]} 25... Nxe4 {[%clk 0:01:19.3]} 26. Bxe4 {[%clk 0:01:39.1]}
26... Be7 {[%clk 0:01:07.4]} 27. a4 {[%clk 0:01:39.3]} 27... Bd8 {[%clk
0:01:05]} 28. axb5 {[%clk 0:01:38.9]} 28... axb5 {[%clk 0:01:05.9]} 29. Ra1
{[%clk 0:01:39.4]} 29... Ra8 {[%clk 0:01:04.4]} 30. Qf2 {[%clk 0:01:33.9]} 30...
Qb8 {[%clk 0:01:03.1]} 31. Ba7 {[%clk 0:01:30.4]} 31... Qc8 {[%clk 0:00:59]} 32.
Ra3 {[%clk 0:01:27.8]} 32... Rd7 {[%clk 0:00:46.8]} 33. Rea1 {[%clk 0:01:27]}
33... Bc7 {[%clk 0:00:42.2]} 34. Kh2 {[%clk 0:01:18.1]} 34... Kg8 {[%clk
0:00:42.1]} 35. Kg3 {[%clk 0:01:11.9]} 35... Kf7 {[%clk 0:00:42.3]} 36. b3
{[%clk 0:01:04.3]} 36... Ke7 {[%clk 0:00:37]} 37. bxc4 {[%clk 0:01:03.4]} 37...
bxc4 {[%clk 0:00:37.9]} 38. Ra4 {[%clk 0:01:00.4]} 38... Qe8 {[%clk 0:00:26.7]}
39. Kg4 {[%clk 0:01:00.2]} 39... Qf7 {[%clk 0:00:20.1]} 40. Qd2 {[%clk
0:00:57.2]} 40... Rdd8 {[%clk 0:00:19.9]} 41. Rxc4 {[%clk 0:00:54]} 41... Bb8
{[%clk 0:00:20.3]} 42. Rca4 {[%clk 0:00:46]} 42... Bc7 {[%clk 0:00:18.2]} 43. c4
{[%clk 0:00:44.4]} 43... Bc8 {[%clk 0:00:18.3]} 44. c5 {[%clk 0:00:43]} 44...
Bd7 {[%clk 0:00:18.4]} 45. c6 {[%clk 0:00:42.2]} 45... Be8 {[%clk 0:00:18.7]}
46. Rh1 {[%clk 0:00:39.4]} 46... Kf8 {[%clk 0:00:19]} 47. Qa2 {[%clk 0:00:36.8]}
47... Rdc8 {[%clk 0:00:18.2]} 48. Kg3 {[%clk 0:00:27.6]} 48... Kg7 {[%clk
0:00:17.9]} 49. Be3 {[%clk 0:00:22.2]} 49... Bxc6 {[%clk 0:00:18]} 50. Rxa8
{[%clk 0:00:15.4]} 50... Rxa8 {[%clk 0:00:17.8]} 51. Qc4 {[%clk 0:00:15.4]}
51... Be8 {[%clk 0:00:17.6]} 52. Kf2 {[%clk 0:00:12.1]} 52... Ra4 {[%clk
0:00:16.8]} 53. Qc2 {[%clk 0:00:12]} 53... Qd7 {[%clk 0:00:16.4]} 54. Rc1 {[%clk
0:00:09.6]} 54... Ba5 {[%clk 0:00:16.7]} 55. Kg3 {[%clk 0:00:07.2]} 55... Bxh5
{[%clk 0:00:14.7]} 56. Qc6 {[%clk 0:00:04.8]} 56... Be8 {[%clk 0:00:13.6]} 57.
Rb1 {[%clk 0:00:04.7]} 57... Qxc6 {[%clk 0:00:10.4]} 58. dxc6 {[%clk 0:00:05.6]}
58... Rc4 {[%clk 0:00:10.5]} 59. Rb7+ {[%clk 0:00:05.6]} 59... Kg8 {[%clk
0:00:10.9]} 60. Bd5+ {[%clk 0:00:06.2]} 1-0

[Event "Late-Titled-Tuesday-Blitz-May-07-2024"]
[Site "Chess.com"]
[Date "2024.05.07"]
[Round "1"]
[White "Szparu"]
[Black "robertoalejandro10"]
[Result "1-0"]
[WhiteElo "2925"]
[BlackElo "2528"]
[TimeControl "180+1"]
[EndTime "14:08:13 PDT"]
[Termination "Szparu won by resignation"]

1. e4 {[%clk 0:03:00.9]} 1... c5 {[%clk 0:02:54.5]} 2. c3 {[%clk 0:03:00.7]}
2... d5 {[%clk 0:02:50]} 3. exd5 {[%clk 0:03:01.5]} 3... Qxd5 {[%clk 0:02:50.1]}
4. d4 {[%clk 0:03:02.2]} 4... g6 {[%clk 0:02:48.9]} 5. Nf3 {[%clk 0:03:02.6]}
5... cxd4 {[%clk 0:02:48.9]} 6. cxd4 {[%clk 0:03:01.7]} 6... Bg7 {[%clk
0:02:49.1]} 7. Nc3 {[%clk 0:03:02.4]} 7... Qa5 {[%clk 0:02:49.2]} 8. Bc4 {[%clk
0:03:02.4]} 8... Nf6 {[%clk 0:02:49]} 9. O-O {[%clk 0:03:02.3]} 9... O-O {[%clk
0:02:49.1]} 10. Re1 {[%clk 0:03:02.7]} 10... Bg4 {[%clk 0:02:33.6]} 11. h3
{[%clk 0:03:03.1]} 11... Bxf3 {[%clk 0:02:33.4]} 12. Qxf3 {[%clk 0:03:04]} 12...
Nc6 {[%clk 0:02:33.9]} 13. d5 {[%clk 0:02:54.7]} 13... Nd4 {[%clk 0:02:16.2]}
14. Qd1 {[%clk 0:02:54.3]} 14... Nd7 {[%clk 0:02:00.6]} 15. Rxe7 {[%clk
0:02:50.1]} 15... Nb6 {[%clk 0:02:00.3]} 16. Bf1 {[%clk 0:02:42.2]} 16... Nxd5
{[%clk 0:01:57.8]} 17. Rxb7 {[%clk 0:02:35.6]} 17... Nxc3 {[%clk 0:01:51.3]} 18.
bxc3 {[%clk 0:02:36.5]} 18... Qxc3 {[%clk 0:01:51.6]} 19. Bb2 {[%clk 0:02:36.8]}
19... Qc6 {[%clk 0:01:52.2]} 20. Rb4 {[%clk 0:02:29.5]} 20... Ne6 {[%clk
0:01:28.4]} 21. Bxg7 {[%clk 0:02:29.8]} 21... Kxg7 {[%clk 0:01:24.7]} 22. Rc1
{[%clk 0:02:30.4]} 22... Rad8 {[%clk 0:01:15.8]} 23. Qe1 {[%clk 0:02:22]} 23...
Qd6 {[%clk 0:01:11.5]} 24. Ra4 {[%clk 0:02:19.4]} 24... Rd7 {[%clk 0:01:07.2]}
25. Ra6 {[%clk 0:02:15.6]} 25... Qd4 {[%clk 0:00:54.8]} 26. Rc4 {[%clk
0:01:54.7]} 26... Qf6 {[%clk 0:00:46]} 27. Rca4 {[%clk 0:01:51.5]} 27... Rfd8
{[%clk 0:00:43.5]} 28. Be2 {[%clk 0:01:40.8]} 28... Qg5 {[%clk 0:00:31.7]} 29.
Qc3+ {[%clk 0:01:31.1]} 29... Kg8 {[%clk 0:00:27.4]} 30. Qe3 {[%clk 0:01:29.8]}
30... Qxe3 {[%clk 0:00:21.9]} 31. fxe3 {[%clk 0:01:30.7]} 31... Rd2 {[%clk
0:00:22.1]} 32. Bc4 {[%clk 0:01:25.7]} 32... Rc2 {[%clk 0:00:13.3]} 33. Rxa7
{[%clk 0:00:39.9]} 33... Rdd2 {[%clk 0:00:11]} 34. Bf1 {[%clk 0:00:40.5]} 34...
Ng5 {[%clk 0:00:08.8]} 35. Rf4 {[%clk 0:00:39.3]} 35... f5 {[%clk 0:00:07.6]}
36. Rb4 {[%clk 0:00:35.6]} 36... Rd8 {[%clk 0:00:06.5]} 37. Rc4 {[%clk 0:00:35]}
37... Rxc4 {[%clk 0:00:05.1]} 38. Bxc4+ {[%clk 0:00:35.9]} 38... Kh8 {[%clk
0:00:05.6]} 39. a4 {[%clk 0:00:25.8]} 39... Ne4 {[%clk 0:00:05.9]} 40. a5 {[%clk
0:00:24.9]} 40... Rd1+ {[%clk 0:00:05.9]} 41. Kh2 {[%clk 0:00:24.7]} 41... Rc1
{[%clk 0:00:06.6]} 42. Bd5 {[%clk 0:00:22.2]} 42... Nd2 {[%clk 0:00:07.1]} 43.
Kg3 {[%clk 0:00:20.8]} 43... Rc5 {[%clk 0:00:07.1]} 44. Bf3 {[%clk 0:00:15.3]}
44... Ne4+ {[%clk 0:00:06.1]} 45. Bxe4 {[%clk 0:00:15.3]} 45... fxe4 {[%clk
0:00:07]} 46. Kf4 {[%clk 0:00:15.5]} 46... Rc4 {[%clk 0:00:07.7]} 47. a6 {[%clk
0:00:15.6]} 47... Ra4 {[%clk 0:00:08.2]} 48. Ke5 {[%clk 0:00:15.1]} 48... Kg8
{[%clk 0:00:07.7]} 49. g4 {[%clk 0:00:15.5]} 49... h5 {[%clk 0:00:07.4]} 50. g5
{[%clk 0:00:14.6]} 50... Ra3 {[%clk 0:00:07.8]} 51. Kxe4 {[%clk 0:00:14.2]}
51... Ra5 {[%clk 0:00:07.2]} 52. Kf4 {[%clk 0:00:14.3]} 52... Kh8 {[%clk
0:00:07.8]} 53. h4 {[%clk 0:00:14.5]} 53... Kg8 {[%clk 0:00:08.7]} 54. e4 {[%clk
0:00:15]} 54... Kf8 {[%clk 0:00:09.6]} 55. e5 {[%clk 0:00:14.9]} 55... Kg8
{[%clk 0:00:09.6]} 56. Ke4 {[%clk 0:00:15]} 56... Kf8 {[%clk 0:00:09.3]} 57. Kd4
{[%clk 0:00:12.5]} 57... Kg8 {[%clk 0:00:09.1]} 58. e6 {[%clk 0:00:13]} 58...
Kf8 {[%clk 0:00:09.1]} 59. Ke4 {[%clk 0:00:12.6]} 59... Kg8 {[%clk 0:00:09.3]}
60. Ra8+ {[%clk 0:00:12.8]} 60... Kg7 {[%clk 0:00:09.4]} 61. e7 {[%clk
0:00:13.4]} 61... Kh7 {[%clk 0:00:05.2]} 62. e8=Q {[%clk 0:00:12.4]} 62... Re5+
{[%clk 0:00:05.8]} 63. Kxe5 {[%clk 0:00:11.8]} 1-0

[Event "Late-Titled-Tuesday-Blitz-May-07-2024"]
[Site "Chess.com"]
[Date "2024.05.07"]
[Round "1"]
[White "Fins0905"]
[Black "WPWPWP-2015"]
[Result "0-1"]
[WhiteElo "2733"]
[BlackElo "2446"]
[TimeControl "180+1"]
[EndTime "14:08:14 PDT"]
[Termination "WPWPWP-2015 won by resignation"]

1. Nf3 {[%clk 0:02:59.6]} 1... Nf6 {[%clk 0:02:59.5]} 2. c4 {[%clk 0:02:59.2]}
2... e6 {[%clk 0:02:59]} 3. Nc3 {[%clk 0:02:52.7]} 3... d5 {[%clk 0:02:56.5]} 4.
cxd5 {[%clk 0:02:52.8]} 4... exd5 {[%clk 0:02:56.4]} 5. d4 {[%clk 0:02:53.3]}
5... Bd6 {[%clk 0:02:55.4]} 6. Bg5 {[%clk 0:02:52.8]} 6... c6 {[%clk 0:02:55.2]}
7. e3 {[%clk 0:02:53.2]} 7... O-O {[%clk 0:02:54.9]} 8. Bd3 {[%clk 0:02:53.2]}
8... Nbd7 {[%clk 0:02:53.9]} 9. O-O {[%clk 0:02:52.8]} 9... Re8 {[%clk
0:02:54.1]} 10. Bf4 {[%clk 0:02:49.3]} 10... Qc7 {[%clk 0:02:52.3]} 11. Bxd6
{[%clk 0:02:46.1]} 11... Qxd6 {[%clk 0:02:53.2]} 12. Qc2 {[%clk 0:02:46.4]}
12... h6 {[%clk 0:02:52]} 13. Rab1 {[%clk 0:02:43.8]} 13... a5 {[%clk
0:02:51.5]} 14. a3 {[%clk 0:02:43.8]} 14... b5 {[%clk 0:02:49.6]} 15. Rfc1
{[%clk 0:02:39.3]} 15... Bb7 {[%clk 0:02:49.2]} 16. h3 {[%clk 0:02:24]} 16...
Rac8 {[%clk 0:02:48.5]} 17. Nd2 {[%clk 0:02:18.4]} 17... Nb6 {[%clk 0:02:47]}
18. Nb3 {[%clk 0:02:15.9]} 18... Nc4 {[%clk 0:02:37.4]} 19. Bxc4 {[%clk
0:02:09]} 19... dxc4 {[%clk 0:02:37.2]} 20. Nxa5 {[%clk 0:02:04.4]} 20... Ba8
{[%clk 0:02:37.4]} 21. b4 {[%clk 0:01:55.9]} 21... Nd5 {[%clk 0:02:07.3]} 22.
Ne4 {[%clk 0:01:51.3]} 22... Qe7 {[%clk 0:01:46.3]} 23. Nc5 {[%clk 0:01:50.2]}
23... Rcd8 {[%clk 0:01:46.8]} 24. Qf5 {[%clk 0:01:45.6]} 24... Rd6 {[%clk
0:01:44]} 25. Qh5 {[%clk 0:01:21.7]} 25... Rg6 {[%clk 0:01:35.8]} 26. Rf1 {[%clk
0:01:15.1]} 26... Kh8 {[%clk 0:01:14.9]} 27. Rbe1 {[%clk 0:01:14.1]} 27... Rg5
{[%clk 0:01:02.6]} 28. Qf3 {[%clk 0:01:13]} 28... Nc7 {[%clk 0:00:39.5]} 29. e4
{[%clk 0:01:02.5]} 29... Ne6 {[%clk 0:00:39.5]} 30. Nxe6 {[%clk 0:00:58.7]}
30... Qxe6 {[%clk 0:00:26.9]} 31. Qf4 {[%clk 0:00:51.9]} 31... Qd7 {[%clk
0:00:25.1]} 32. Rd1 {[%clk 0:00:49.3]} 32... Rg6 {[%clk 0:00:22.5]} 33. Kh2
{[%clk 0:00:47.6]} 33... Rf6 {[%clk 0:00:21.9]} 34. Qe3 {[%clk 0:00:46.1]} 34...
Qc7+ {[%clk 0:00:18]} 35. Kg1 {[%clk 0:00:44.7]} 35... c5 {[%clk 0:00:16.8]} 36.
f3 {[%clk 0:00:35.8]} 36... cxd4 {[%clk 0:00:12.8]} 37. Rxd4 {[%clk 0:00:33.3]}
37... Rg6 {[%clk 0:00:12.5]} 38. Qf2 {[%clk 0:00:30.9]} 38... Kh7 {[%clk
0:00:10]} 39. Rfd1 {[%clk 0:00:31]} 39... Qf4 {[%clk 0:00:10]} 40. Rd7 {[%clk
0:00:26.4]} 40... Bc6 {[%clk 0:00:08.7]} 41. Ra7 {[%clk 0:00:21.9]} 41... c3
{[%clk 0:00:08.4]} 42. Ra6 {[%clk 0:00:15]} 42... Ree6 {[%clk 0:00:07.9]} 43.
Nxc6 {[%clk 0:00:13.3]} 43... Rxc6 {[%clk 0:00:07.9]} 44. Rxc6 {[%clk
0:00:14.2]} 44... Rxc6 {[%clk 0:00:07.8]} 45. Qc2 {[%clk 0:00:14.9]} 45... Qe3+
{[%clk 0:00:07.5]} 46. Kf1 {[%clk 0:00:15.5]} 46... g6 {[%clk 0:00:07.3]} 47.
Rd3 {[%clk 0:00:15.7]} 47... Qf4 {[%clk 0:00:06]} 48. Rxc3 {[%clk 0:00:16]}
48... Rd6 {[%clk 0:00:06.6]} 49. Rd3 {[%clk 0:00:16.3]} 49... Re6 {[%clk
0:00:06.3]} 50. Qd2 {[%clk 0:00:16.6]} 50... Qh2 {[%clk 0:00:05.5]} 51. Kf2
{[%clk 0:00:16.6]} 51... Qe5 {[%clk 0:00:05.1]} 52. Rd5 {[%clk 0:00:16.6]} 52...
Qa1 {[%clk 0:00:04.9]} 53. Rxb5 {[%clk 0:00:16.6]} 53... Rc6 {[%clk 0:00:04.2]}
54. Rc5 {[%clk 0:00:16.6]} 54... Rf6 {[%clk 0:00:03.2]} 55. Rc3 {[%clk
0:00:15.3]} 55... Qb1 {[%clk 0:00:02.7]} 56. h4 {[%clk 0:00:13]} 56... Qxe4
{[%clk 0:00:02.6]} 57. g3 {[%clk 0:00:09.5]} 57... Qf5 {[%clk 0:00:01.6]} 58.
Kg2 {[%clk 0:00:09.6]} 58... Qe5 {[%clk 0:00:01.4]} 59. Re3 {[%clk 0:00:09.6]}
59... Qa1 {[%clk 0:00:01.4]} 60. Qd4 {[%clk 0:00:08.8]} 60... Qxd4 {[%clk
0:00:01.1]} 61. Re4 {[%clk 0:00:08.8]} 61... Qd2+ {[%clk 0:00:01.3]} 0-1